fUSD/lending_fUSD_20250227
["ID","MTS","AMOUNT","RATE_DAILY","PERIOD"]
[354740548,1740658240377,-5003.81574193,0.00015,2]
[354740549,1740658240389,-2806.18425807,0.00015,2]
[354740550,1740658240430,-2607.89003568,0.00015,2]
[354740551,1740658240540,-287.02030229,0.00015,2]
[354740552,1740658240654,-355.93044,0.00015,2]
[354740553,1740658240752,-4454.38154,0.00015,2]
[354740554,1740658241158,500.0,0.00054794,120]
[354740555,1740658241648,500.0,0.00054794,120]
[354740568,1740658244490,-1141.540335,0.00015,2]
[354740570,1740658246493,-14044.19605598,0.00015,2]
[354740571,1740658246546,-2866.43,0.00015,2]
[354740572,1740658246600,-41944.12198825,0.00015,2]
[354740573,1740658246655,-708.72684066,0.00015,2]
[354740574,1740658246707,-78976.2682631,0.00015,2]
[354740575,1740658246718,-707.34964,0.00015,2]
[354740576,1740658246814,-2580.0000008,0.00015,2]
[354740577,1740658246826,-778.9999975,0.00015,2]
[354740584,1740658955257,1800.0,0.00028309,120]
[354740587,1740659179569,540.0,0.00018,14]
[354740588,1740659179596,350.0,0.00018,14]
[354740590,1740659211320,1137.68592785,9.899e-05,2]
[354740591,1740659289075,581.06549826,9.9e-05,2]
[354740593,1740659306200,1002.77882679,0.0002831,46]
[354740594,1740659309156,284.09922914,0.0002831,30]
[354740595,1740659309932,559.44790441,0.0002831,30]
[354740597,1740659334466,-628.0,0.00013699,5]
[354740608,1740659392042,-3000.0,0.00018,14]
[354740614,1740659431628,-0.8146832,0.00013699,5]
[354740615,1740659431638,-157.5817981,0.00014699,2]
[354740616,1740659431648,-932.413,0.000147,2]
[354740617,1740659431657,-3010.833224,0.000149,2]
[354740618,1740659431667,-733.9755,0.000149,2]
[354740619,1740659431676,-15348.11303709,0.000149,2]
[354740620,1740659431686,-632.7795,0.000149,2]
[354740621,1740659431695,-1753.313,0.000149,2]
[354740622,1740659431704,-320.1783825,0.000149,2]
[354740623,1740659431713,-8693.01167256,0.000149,2]
[354740624,1740659431723,-323.27820817,0.000149,2]
[354740625,1740659431732,-3094.9061253,0.000149,2]
[354740626,1740659431741,-503.87406352,0.00014973,2]
[354740627,1740659431750,-500.0,0.00014973,2]
[354740628,1740659431759,-152.84470948,0.0001499,2]
[354740629,1740659431769,-1001.9711,0.00014999,2]
[354740630,1740659431778,-119150.11049608,0.00015,2]
[354740631,1740659431805,-30354.46603895,0.00015,2]
[354740632,1740659431907,-71639.78727306,0.00015,2]
[354740633,1740659431920,-1305.0,0.00015,2]
[354740634,1740659437621,-18354.96799999,0.00015,2]
[354740642,1740659441424,-2811.10747887,0.00018,14]
[354740646,1740659446098,-252.99492842,0.000149,2]
[354740647,1740659446108,-28.90439487,0.00015,2]
[354740666,1740660586513,-392.33474167,0.0001458,2]
[354740667,1740660586542,-123.87451024,0.00014718,2]
[354740677,1740660631815,-26.12548976,0.00014718,2]
[354740678,1740660631824,-300.0,0.00014899,2]
[354740679,1740660631834,-152.84470944,0.000149,2]
[354740680,1740660631842,-7788.1043,0.000149,2]
[354740681,1740660631852,-10360.89774672,0.000149,2]
[354740682,1740660631863,-4802.05480648,0.000149,2]
[354740683,1740660631932,-16911.17727207,0.000149,2]
[354740684,1740660631941,-2809.80524077,0.000149,2]
[354740685,1740660631994,-1710.79569163,0.000149,2]
[354740686,1740660632004,-215.51880546,0.000149,2]
[354740687,1740660632014,-319.43613315,0.000149,2]
[354740688,1740660632023,-11873.99416856,0.00015,2]
[354740689,1740660632035,-23579.365681,0.00015,2]
[354740690,1740660632046,-6099.9999999,0.00015,2]
[354740691,1740660632058,-4880.0,0.00015,2]
[354740692,1740660632069,-2950.70297992,0.00015,2]
[354740693,1740660632080,-675.3,0.00015,2]
[354740694,1740660632102,-1363.02,0.00015,2]
[354740695,1740660632114,-1231.85132041,0.00015,2]
[354740696,1740660632125,-424.87953154,0.00015,2]
[354740708,1740660637743,-14543.3541887,0.00015,2]
[354740709,1740660637754,-642.1138,0.00015,2]
[354740710,1740660637765,-70969.28939783,0.00015,2]
[354740716,1740660639927,-1225.28875366,0.00015,2]
[354740717,1740660640044,-2119.1805231,0.00015,2]
[354740718,1740660640056,-1344.2273,0.00015,2]
[354740719,1740660640068,-346.89193265,0.00015,2]
[354740720,1740660640168,-2866.59553672,0.00015,2]
[354740742,1740660642903,-5826.95480421,0.00015,2]
[354740743,1740660642915,-1672.28569968,0.00015,2]
[354740744,1740660642927,-948.09401731,0.00015,2]
[354740745,1740660642963,-90441.25437164,0.00015,2]
[354740746,1740660642974,-766.78216865,0.00015,2]
[354740748,1740660643815,-24837.23746254,0.00015,2]
[354740749,1740660645987,-1000.0,0.000149,2]
[354740750,1740660645996,-190526.04165602,0.00015,2]
[354740751,1740660646103,-8679.6,0.00015,2]
[354740752,1740660646167,-4475.8000325,0.00015,2]
[354740753,1740660646278,-3720.92817621,0.00015,2]
[354740760,1740660729026,-966.79167,0.0001485,2]
[354740761,1740660729059,-150.0,0.00014875,2]
[354740762,1740660729087,-2063.2707502,0.000149,2]
[354740763,1740660729113,-150.0,0.00014999,2]
[354740764,1740660729140,-300.0,0.00014999,2]
[354740765,1740660729168,-2910.9375798,0.00015,2]
[354740774,1740661632625,-745.931,0.000147,2]
[354740775,1740661632649,-300.0,0.00014799,2]
[354740776,1740661632673,-1916.7976,0.000148,2]
[354740777,1740661632697,-37.2714,0.000148,2]
[354740782,1740661832448,-160.58,0.00013788,2]
[354740783,1740661832461,-300.0,0.00014799,2]
[354740784,1740661832472,-313.84493428,0.000148,2]
[354740828,1740661838138,-832.25146572,0.000148,2]
[354740829,1740661838148,-739.5345,0.000148,2]
[354740830,1740661838158,-1432.8634,0.000148,2]
[354740831,1740661838168,-956.14527317,0.0001485,2]
[354741348,1740661843223,-1.71627552,0.0001485,2]
[354741451,1740661844505,-270.62593005,0.0001485,2]
[354741457,1740661846327,-317.294405,0.0001485,2]
[354741458,1740661846434,-5015.92863842,0.0001485,2]
[354741460,1740662812231,1137.68592785,9.899e-05,2]
[354741462,1740662890325,581.06549826,9.9e-05,2]
[354741464,1740662940293,103.0848032,0.00012064,2]
[354741465,1740662940323,616.3851968,0.00012064,2]
[354741468,1740662996032,-1000.0,0.0001396,2]
[354741470,1740662996060,-1794.67,0.0001397,2]
[354741472,1740662996088,-1628.78539532,0.0001397,2]
[354741474,1740662996121,-371.21460468,0.0001397,2]
[354741475,1740662996148,-1612.1319882,0.00014051,2]
[354741491,1740663032421,-250.0,0.00013996,2]
[354741492,1740663032430,-207.3380118,0.00014051,2]
[354741493,1740663032439,-200.0,0.00014082,2]
[354741494,1740663032451,-159.79,0.00014128,2]
[354741495,1740663032461,-719.47,0.00014328,2]
[354741496,1740663032470,-309.18,0.00014341,2]
[354741497,1740663032479,-195.6,0.00014347,2]
[354741498,1740663032491,-150.0,0.0001442,7]
[354741499,1740663032500,-150.0,0.00014497,2]
[354741500,1740663032509,-183.23,0.00014668,2]
[354741501,1740663032519,-1030.0,0.000147,2]
[354741502,1740663032528,-917.6419882,0.0001471,2]
[354741503,1740663032540,-707.07731665,0.0001471,2]
[354741504,1740663032551,-629.99914214,0.0001471,2]
[354741505,1740663032567,-5402.91999996,0.0001471,2]
[354741506,1740663032578,-2333.15263314,0.0001471,2]
[354741507,1740663032589,-437.18126955,0.0001471,2]
[354741508,1740663032616,-13651.90155157,0.0001471,2]
[354741509,1740663032626,-1819.47,0.00014754,2]
[354741510,1740663032636,-484.73112594,0.00014799,2]
[354741511,1740663032645,-69613.39414873,0.000148,2]
[354741512,1740663032655,-1472.3264,0.0001485,2]
[354741513,1740663032664,-222.1453036,0.00014873,2]
[354741514,1740663032673,-596.744,0.00014889,2]
[354741515,1740663032682,-256545.1295131,0.000149,2]
[354741516,1740663032692,-216.85279578,0.000149,2]
[354741517,1740663032702,-164.99023085,0.000149,2]
[354741518,1740663032712,-318.45310179,0.000149,2]
[354741519,1740663032721,-215.51880544,0.000149,2]
[354741520,1740663032731,-8531.69,0.00014907,2]
[354741521,1740663032743,-500.0,0.00014973,2]
[354741522,1740663032753,-427184.96333216,0.00015,2]
[354741523,1740663032763,-32150.09620196,0.00015,2]
[354741527,1740663032800,-2697.1634484,0.00015,2]
[354741540,1740663038135,-23999.32410261,0.00015,2]
[354741541,1740663038147,-3758.59430738,0.00015,2]
[354741542,1740663038159,-443.13092382,0.00015,2]
[354741543,1740663038239,-7102.28458991,0.00015,2]
[354741544,1740663038254,-8595.71340036,0.00015,2]
[354741545,1740663038265,-660.14711548,0.00015,2]
[354741546,1740663038276,-468.40396298,0.00015,2]
[354741547,1740663038288,-822.49017547,0.00015,2]
[354741548,1740663038359,-13644.36289013,0.00015,2]
[354741549,1740663038371,-2266.97143506,0.00015,2]
[354741550,1740663038382,-569.24618915,0.00015,2]
[354741551,1740663038393,-2190.83573262,0.00015,2]
[354741552,1740663038428,-740.34726879,0.00015,2]
[354741553,1740663038439,-2478.13327825,0.00015,2]
[354741554,1740663038501,-709.08266212,0.00015,2]
[354741568,1740663040308,-285.12435591,0.00015,2]
[354741569,1740663040319,-40680.86482983,0.00015,2]
[354741570,1740663040331,-7153.73604969,0.00015,2]
[354741571,1740663040342,-2165.6741415,0.00015,2]
[354741572,1740663040369,-1092.27862809,0.00015,2]
[354741573,1740663040483,-715.30499577,0.00015,2]
[354741574,1740663040496,-1855.07624526,0.00015,2]
[354741575,1740663040552,-1498.37845991,0.00015,2]
[354741576,1740663040570,-374.5025,0.00015,2]
[354741577,1740663040622,-158335.55729908,0.00015,2]
[354741578,1740663040633,-1665.59706668,0.00015,2]
[354741579,1740663040645,-787.36,0.00015,2]
[354741580,1740663040656,-2295.0,0.00015,2]
[354741581,1740663040685,-2530.20273137,0.00015,2]
[354741582,1740663040697,-3075.28826863,0.00015,2]
[354741600,1740663044665,-545.0686407,0.00015,2]
[354741601,1740663044681,-298.55645477,0.00015,2]
[354741641,1740663046482,-3504.29776249,0.00015,2]
[354741642,1740663046545,-3486.2731101,0.00015,2]
[354741643,1740663046633,-1060.82438516,0.00015,2]
[354741646,1740663150243,234.37255354,0.00028308,120]
[354742135,1740663277869,-200.14,0.00024712,30]
[354742136,1740663277904,-345.0,0.0002497,30]
[354742137,1740663277938,-345.0,0.0002498,30]
[354742138,1740663277971,-345.0,0.0002499,30]
[354742139,1740663278003,-2394.7193605,0.00025,30]
[354742140,1740663278034,-1037.4729002,0.00025,60]
[354742141,1740663278068,-1508.20688545,0.00025,60]
[354742142,1740663278100,-3210.6722926,0.00025,60]
[354742143,1740663278134,-452.06,0.00025942,120]
[354742144,1740663278173,-500.0,0.00031308,30]
[354742145,1740663278208,-500.0,0.00031308,30]
[354742146,1740663278245,-500.0,0.00031308,30]
[354742147,1740663278280,-500.0,0.00031308,30]
[354742148,1740663278316,-500.0,0.00031308,30]
[354742149,1740663278351,-500.0,0.00031308,30]
[354742150,1740663278384,-500.0,0.00031308,30]
[354742151,1740663278416,-237.65740305,0.00031308,30]
[354742152,1740663278450,-500.0,0.00031308,30]
[354742153,1740663278484,-150.0,0.000372,103]
[354742154,1740663278519,-500.0,0.000372,103]
[354742155,1740663278552,-150.0,0.000372,103]
[354742156,1740663278585,-1088.0,0.000372,103]
[354742157,1740663278617,-500.0,0.000372,103]
[354742158,1740663278651,-150.0,0.00037227,103]
[354742159,1740663278687,-500.0,0.00037227,103]
[354742160,1740663278724,-150.0,0.00037227,103]
[354742161,1740663278760,-1088.0,0.00037227,103]
[354742162,1740663278795,-500.0,0.00037227,103]
[354742163,1740663278828,-189.00046065,0.00037255,103]
[354742164,1740663278863,-500.0,0.00037255,103]
[354742165,1740663278898,-150.0,0.00037255,103]
[354742166,1740663278931,-1088.0,0.00037255,103]
[354742167,1740663278966,-500.0,0.00037255,103]
[354742168,1740663278998,-500.0,0.00037282,103]
[354742169,1740663279030,-250.0,0.00037282,103]
[354742170,1740663279064,-1088.0,0.00037282,103]
[354742171,1740663279098,-857.08371444,0.00037282,103]
[354742172,1740663279133,-524.13465511,0.0003731,103]
[354742173,1740663279174,-1088.0,0.0003731,103]
[354742174,1740663279212,-1088.0,0.00037337,103]
[354742175,1740663279247,-1088.0,0.00037364,103]
[354742176,1740663279282,-1088.0,0.00037392,103]
[354742177,1740663279316,-1088.0,0.00037419,103]
[354742178,1740663279352,-1088.0,0.00037447,103]
[354742179,1740663279387,-1088.0,0.00037474,103]
[354742180,1740663279421,-1088.0,0.00037501,103]
[354742181,1740663279456,-1088.0,0.00037529,103]
[354742182,1740663279490,-1088.0,0.00037556,103]
[354742183,1740663279525,-1088.0,0.00037584,103]
[354742184,1740663279709,-1088.0,0.00037611,103]
[354742185,1740663279747,-1088.0,0.00037638,103]
[354742186,1740663279782,-1088.0,0.00037666,103]
[354742187,1740663279817,-1088.0,0.00037693,103]
[354742188,1740663279850,-1103.25979385,0.00037721,103]
[354742189,1740663279884,-596.745,0.00038667,52]
[354742190,1740663279918,-9479.48553349,0.000399,30]
[354742191,1740663279953,-1500.0,0.00041096,120]
[354742192,1740663279987,-150.0,0.00041245,120]
[354742193,1740663280023,-151.0,0.00045,120]
[354742194,1740663280062,-196975.28806811,0.00045,90]
[354742195,1740663280104,-154.28,0.000463,39]
[354742196,1740663280143,-154.28,0.000463,39]
[354742197,1740663280177,-217.0,0.00047,90]
[354742198,1740663280213,-151.0,0.00047507,120]
[354742199,1740663280247,-450.02936322,0.00048,30]
[354742200,1740663280279,-216.85279577,0.00048233,31]
[354742201,1740663280312,-443.3018519,0.00048797,120]
[354742202,1740663280344,-161.37805596,0.00048797,120]
[354742203,1740663280376,-500.0,0.00049315,120]
[354742204,1740663280408,-500.0,0.00049315,120]
[354742205,1740663280442,-500.0,0.00049589,120]
[354742206,1740663280473,-163.88690699,0.00049662,120]
[354742207,1740663280507,-500.0,0.00049863,120]
[354742208,1740663280541,-358.054335,0.000499,119]
[354742209,1740663280576,-151.0,0.0005,120]
[354742210,1740663280610,-1000.0,0.0005,120]
[354742211,1740663280644,-1968.0,0.0005,120]
[354742212,1740663280678,-2266.78193774,0.0005,120]
[354742213,1740663280713,-152.03,0.0005,120]
[354742214,1740663280746,-152.03,0.0005,120]
[354742215,1740663280780,-152.03,0.0005,120]
[354742216,1740663280815,-152.03,0.0005,120]
[354742217,1740663280849,-152.03,0.0005,120]
[354742218,1740663280885,-152.03,0.0005,120]
[354742219,1740663280920,-152.03,0.0005,120]
[354742220,1740663280958,-152.03,0.0005,120]
[354742221,1740663280992,-152.03,0.0005,120]
[354742222,1740663281024,-152.03,0.0005,120]
[354742223,1740663281057,-152.03,0.0005,120]
[354742224,1740663281090,-152.03,0.0005,120]
[354742225,1740663281122,-150.0,0.0005,120]
[354742226,1740663281155,-500.0,0.00050136,120]
[354742227,1740663281191,-500.0,0.0005041,120]
[354742228,1740663281228,-154.28,0.000505,48]
[354742229,1740663281265,-154.28,0.000505,48]
[354742230,1740663281302,-154.28,0.000505,48]
[354742231,1740663281338,-154.28,0.000505,48]
[354742232,1740663281370,-500.0,0.00050684,120]
[354742233,1740663281403,-150.0,0.000509,120]
[354742234,1740663281435,-347.87715147,0.00050958,120]
[354742235,1740663281472,-886.94,0.00052219,30]
[354742236,1740663281511,-703.87,0.00052267,90]
[354742237,1740663281544,-151.0,0.00052493,120]
[354742238,1740663281576,-237.99,0.00052603,30]
[354742239,1740663281609,-361.4,0.00052603,30]
[354742240,1740663281642,-150.0,0.00052603,30]
[354742241,1740663281677,-150.0,0.00052603,30]
[354742242,1740663281713,-150.0,0.00052603,30]
[354742243,1740663281747,-410.38959839,0.0005283,120]
[354742244,1740663281782,-161.94,0.000534,120]
[354742245,1740663281816,-100000.0,0.00053494,53]
[354742246,1740663281849,-410.575772,0.00053494,120]
[354742247,1740663281881,-163.008848,0.00053494,120]
[354742248,1740663282026,-163.008848,0.00053494,120]
[354742249,1740663282061,-1000000.0,0.000535,120]
[354742250,1740663282094,-345.0,0.0005387,30]
[354742251,1740663282127,-345.0,0.0005388,30]
[354742252,1740663282160,-345.0,0.0005389,30]
[354742253,1740663282195,-159.894748,0.000539,120]
[354742254,1740663282231,-164.99023085,0.00053972,31]
[354742255,1740663282267,-43905.0,0.00054,120]
[354742256,1740663282302,-122582.70538722,0.00054,120]
[354742257,1740663282335,-2127.05057864,0.00054,120]
[354742258,1740663282369,-50851.94,0.00054,120]
[354742259,1740663282404,-1091311.757,0.00054,120]
[354742260,1740663282438,-1011601.0,0.00054,120]
[354742261,1740663282474,-1140.0,0.00054242,120]
[354742262,1740663282510,-1140.0,0.00054242,120]
[354742263,1740663282546,-1140.0,0.00054242,120]
[354742264,1740663282581,-1058.0,0.00054242,120]
[354742265,1740663282618,-156.61,0.00054384,120]
[354742266,1740663282652,-155.7007916,0.000545,61]
[354742267,1740663282687,-247634.48208499,0.000545,120]
[354742268,1740663282724,-1000000.0,0.000545,120]
[354742269,1740663282760,-54516.61764681,0.000545,120]
[354742270,1740663289013,-1012961.84425319,0.000545,120]
[354742271,1740663289053,-1000.0,0.0005452,120]
[354742272,1740663289091,-257.875821,0.000547,99]
[354742273,1740663289131,-154.28,0.000547,54]
[354742274,1740663289173,-154.28,0.000547,54]
[354742275,1740663289215,-154.28,0.000547,54]
[354742276,1740663289256,-154.28,0.000547,54]
[354742277,1740663289292,-1140.0,0.00054794,120]
[354742278,1740663289328,-500.0,0.00054794,120]
[354742279,1740663289362,-500.0,0.00054794,120]
[354742280,1740663289395,-500.0,0.00054794,120]
[354742281,1740663289428,-500.0,0.00054794,120]
[354742282,1740663289463,-500.0,0.00054794,120]
[354742283,1740663289497,-500.0,0.00054794,120]
[354742284,1740663289533,-500.0,0.00054794,120]
[354742285,1740663289568,-501.42155785,0.00054794,120]
[354742286,1740663289603,-500.0,0.00054794,120]
[354742287,1740663289637,-500.0,0.00054794,120]
[354742288,1740663289673,-500.0,0.00054794,120]
[354742289,1740663289707,-500.0,0.00054794,120]
[354742290,1740663289743,-500.0,0.00054794,120]
[354742291,1740663289778,-500.0,0.00054794,120]
[354742292,1740663289812,-500.0,0.00054794,120]
[354742293,1740663289846,-500.0,0.00054794,120]
[354742294,1740663289882,-500.0,0.00054794,120]
[354742295,1740663289917,-671.81,0.00054794,120]
[354742296,1740663289953,-500.0,0.00054794,120]
[354742297,1740663289992,-501.20602036,0.00054794,120]
[354742298,1740663290027,-500.0,0.00054794,120]
[354742299,1740663290064,-500.0,0.00054794,120]
[354742300,1740663290100,-503.25686447,0.00054794,120]
[354742301,1740663290134,-500.0,0.00054794,120]
[354742302,1740663290169,-500.0,0.00054794,120]
[354742303,1740663290203,-500.0,0.00054794,120]
[354742304,1740663290236,-500.82828377,0.00054794,120]
[354742305,1740663290271,-500.0,0.00054794,120]
[354742306,1740663290305,-507.65599103,0.00054794,120]
[354742307,1740663290338,-500.0,0.00054794,120]
[354742308,1740663290370,-500.0,0.00054794,120]
[354742309,1740663290403,-502.91778658,0.00054794,120]
[354742310,1740663290436,-500.0,0.00054794,120]
[354742311,1740663290470,-500.0,0.00054794,120]
[354742312,1740663290504,-500.0,0.00054794,120]
[354742313,1740663290537,-500.0,0.00054794,120]
[354742314,1740663290572,-500.0,0.00054794,120]
[354742315,1740663290608,-521.7301647,0.00054794,120]
[354742316,1740663290750,-501.95607304,0.00054794,120]
[354742317,1740663290786,-500.87449802,0.00054794,120]
[354742318,1740663290820,-500.0,0.00054794,120]
[354742319,1740663290854,-506.20266312,0.00054794,120]
[354742320,1740663290888,-500.0,0.00054794,120]
[354742321,1740663290922,-500.0,0.00054794,120]
[354742322,1740663290957,-500.0,0.00054794,120]
[354742323,1740663290990,-506.42153139,0.00054794,120]
[354742324,1740663291023,-500.0,0.00054794,120]
[354742325,1740663291055,-500.0,0.00054794,120]
[354742326,1740663291090,-503.95561286,0.00054794,120]
[354742327,1740663291122,-500.0,0.00054794,120]
[354742328,1740663291154,-500.0,0.00054794,120]
[354742329,1740663291188,-501.97969199,0.00054794,120]
[354742330,1740663291223,-500.0,0.00054794,120]
[354742331,1740663291256,-483.42016032,0.00054794,120]
[354742332,1740663291289,-500.0,0.00054794,120]
[354742333,1740663291321,-545.51936661,0.00054794,120]
[354742334,1740663291353,-500.0,0.00054794,120]
[354742335,1740663291388,-500.98300575,0.00054794,120]
[354742336,1740663291420,-498.56412806,0.00054794,120]
[354742337,1740663291453,-501.66570651,0.00054794,120]
[354742338,1740663291489,-500.0,0.00054794,120]
[354742339,1740663291523,-500.0,0.00054794,120]
[354742340,1740663291557,-503.10815778,0.00054794,120]
[354742341,1740663291592,-500.0,0.00054794,120]
[354742342,1740663291628,-500.0,0.00054794,120]
[354742343,1740663291666,-500.0,0.00054794,120]
[354742344,1740663291704,-500.0,0.00054794,120]
[354742345,1740663291740,-501.38430211,0.00054794,120]
[354742346,1740663291776,-503.60573339,0.00054794,120]
[354742347,1740663291812,-500.0,0.00054794,120]
[354742348,1740663291847,-503.71304176,0.00054794,120]
[354742349,1740663291881,-500.0,0.00054794,120]
[354742350,1740663291914,-500.0,0.00054794,120]
[354742351,1740663291948,-505.2704024,0.00054794,120]
[354742352,1740663291981,-500.0,0.00054794,120]
[354742353,1740663292014,-500.0,0.00054794,120]
[354742354,1740663292046,-500.0,0.00054794,120]
[354742355,1740663292080,-500.0,0.00054794,120]
[354742356,1740663292114,-500.0,0.00054794,120]
[354742357,1740663292148,-502.71205044,0.00054794,120]
[354742358,1740663292183,-500.0,0.00054794,120]
[354742359,1740663292218,-500.0,0.00054794,120]
[354742360,1740663292251,-500.0,0.00054794,120]
[354742361,1740663292284,-500.0,0.00054794,120]
[354742362,1740663292318,-500.0,0.00054794,120]
[354742363,1740663292351,-500.0,0.00054794,120]
[354742364,1740663292383,-516.43002987,0.00054794,120]
[354742365,1740663292414,-500.0,0.00054794,120]
[354742366,1740663292448,-500.0,0.00054794,120]
[354742367,1740663292480,-506.5163603,0.00054794,120]
[354742368,1740663292516,-500.0,0.00054794,120]
[354742369,1740663292551,-500.0,0.00054794,120]
[354742370,1740663292586,-500.0,0.00054794,120]
[354742371,1740663292621,-500.0,0.00054794,120]
[354742372,1740663292655,-633.35515999,0.00054794,120]
[354742373,1740663292690,-500.0,0.00054794,120]
[354742374,1740663292820,-509.14630326,0.00054794,120]
[354742375,1740663292859,-500.0,0.00054794,120]
[354742376,1740663292895,-500.0,0.00054794,120]
[354742377,1740663292929,-498.36481042,0.00054794,120]
[354742378,1740663292961,-500.0,0.00054794,120]
[354742379,1740663292994,-465.31643426,0.00054794,120]
[354742380,1740663293026,-500.0,0.00054794,120]
[354742381,1740663293058,-500.0,0.00054794,120]
[354742382,1740663293089,-501.56880534,0.00054794,120]
[354742383,1740663293121,-500.0,0.00054794,120]
[354742384,1740663293152,-500.0,0.00054794,120]
[354742385,1740663293185,-500.0,0.00054794,120]
[354742386,1740663293219,-500.0,0.00054794,120]
[354742387,1740663293253,-502.66361039,0.00054794,120]
[354742388,1740663293287,-507.73505819,0.00054794,120]
[354742389,1740663293321,-500.0,0.00054794,120]
[354742390,1740663293354,-500.0,0.00054794,120]
[354742391,1740663293388,-500.0,0.00054794,120]
[354742392,1740663293422,-500.0,0.00054794,120]
[354742393,1740663293456,-500.0,0.00054794,120]
[354742394,1740663293492,-500.0,0.00054794,120]
[354742395,1740663293529,-505.18412821,0.00054794,120]
[354742396,1740663293569,-500.0,0.00054794,120]
[354742397,1740663293607,-501.42095163,0.00054794,120]
[354742398,1740663293645,-500.0,0.00054794,120]
[354742399,1740663293681,-505.65769127,0.00054794,120]
[354742400,1740663293723,-500.0,0.00054794,120]
[354742401,1740663293760,-508.72790245,0.00054794,120]
[354742402,1740663293798,-503.31840739,0.00054794,120]
[354742403,1740663293836,-501.85562944,0.00054794,120]
[354742404,1740663293874,-500.0,0.00054794,120]
[354742405,1740663293910,-500.0,0.00054794,120]
[354742406,1740663293946,-500.0,0.00054794,120]
[354742407,1740663293984,-541.80317291,0.00054794,120]
[354742408,1740663294019,-500.0,0.00054794,120]
[354742409,1740663294054,-512.00519649,0.00054794,120]
[354742410,1740663294088,-500.0,0.00054794,120]
[354742411,1740663294123,-500.0,0.00054794,120]
[354742412,1740663294159,-500.0,0.00054794,120]
[354742413,1740663294194,-500.0,0.00054794,120]
[354742414,1740663294229,-500.0,0.00054794,120]
[354742415,1740663294263,-500.0,0.00054794,120]
[354742416,1740663294296,-500.0,0.00054794,120]
[354742417,1740663294329,-500.0,0.00054794,120]
[354742418,1740663294361,-500.0,0.00054794,120]
[354742419,1740663294395,-500.0,0.00054794,120]
[354742420,1740663294428,-500.0,0.00054794,120]
[354742421,1740663294465,-554.5297629,0.00054794,120]
[354742422,1740663294501,-498.4790424,0.00054794,120]
[354742423,1740663294536,-500.0,0.00054794,120]
[354742424,1740663294573,-500.0,0.00054794,120]
[354742425,1740663294609,-500.0,0.00054794,120]
[354742426,1740663294645,-500.0,0.00054794,120]
[354742427,1740663294680,-502.88764895,0.00054794,120]
[354742428,1740663294715,-506.54086718,0.00054794,120]
[354742429,1740663294751,-500.0,0.00054794,120]
[354742430,1740663294787,-500.0,0.00054794,120]
[354742431,1740663294935,-500.0,0.00054794,120]
[354742432,1740663294972,-506.88643453,0.00054794,120]
[354742433,1740663295007,-500.0,0.00054794,120]
[354742434,1740663295043,-500.0,0.00054794,120]
[354742435,1740663295078,-500.0,0.00054794,30]
[354742436,1740663295112,-500.0,0.00054794,120]
[354742437,1740663295145,-500.0,0.00054794,120]
[354742438,1740663295183,-500.0,0.00054794,120]
[354742439,1740663295220,-500.0,0.00054794,120]
[354742440,1740663295255,-246.72060099,0.00054794,120]
[354742441,1740663295289,-507.25936591,0.00054794,120]
[354742442,1740663295326,-500.0,0.00054794,120]